Cogmind - Beta 12 @@@ ROGUE MODE // 2023.09.02 @ 12:12:14 Player: JoshKwa Result: Destroyed by D-53 Grenadier with Mini Grenade Launcher Performance ------------- Evolutions (0) 0 Regions Visited (2) 400 Robots Destroyed (1) 5 Value Destroyed (45) 45 Prototype IDs (0) 0 Alien Tech Used (0) 0 Bonus (0) 0 TOTAL SCORE: 450 Bonus ------- None Cogmind --------- Core Integrity 0/250 Matter 300/300 Energy 100/100 System Corruption 1% Temperature Cool (0) Movement Walking (120) Location -10/Mines Parts ------- > --- POWER (1) -------- (None) > --- PROPULSION (2) --- Carbon-fiber Leg Carbon-fiber Leg > --- UTILITY (2) ------ (None) > --- WEAPON (2) ------- Improved Datajack > --- INVENTORY (5) ---- Ion Engine Aluminum Leg Aluminum Leg Experimental Sensor Array High-powered Shotgun Peak State ------------ > --- POWER ------------ Improved Ion Engine > --- PROPULSION ------- Carbon-fiber Leg Carbon-fiber Leg > --- UTILITY ---------- Recoil Stabilizer Light Armor Plating > --- WEAPON ----------- Shock Rifle Improved Datajack > --- INVENTORY -------- Ion Engine Aluminum Leg Aluminum Leg Experimental Sensor Array High-powered Shotgun [Rating: 19] Favorites ----------- Power Ion Engine Engine Ion Engine Propulsion Wheel Leg Carbon-fiber Leg Wheel Wheel Utility Recoil Stabilizer Device Recoil Stabilizer Protection Light Armor Plating Weapon Improved Datajack Energy Gun Shock Rifle Special Melee Weapon Improved Datajack Build | -11 -10 -10 ------- Run | Jun Mat Min Slots Evolved . | . . . Power . | . . . Propulsion . | . . . Utility . | . . . Weapon . | . . . Parts Attached 18 | 5 1 12 Power 3 | 1 . 2 Engine 3 | 1 . 2 Core . | . . . Reactor . | . . . Propulsion 6 | 2 . 4 Treads . | . . . Leg 4 | . . 4 Wheel 2 | 2 . . Hover . | . . . Flight . | . . . Utility 3 | . . 3 Device 2 | . . 2 Storage . | . . . Processor . | . . . Hackware . | . . . Protection 1 | . . 1 Artifact . | . . . Weapon 6 | 2 1 3 Energy Gun 4 | 2 . 2 Energy Cannon . | . . . Ballistic Gun . | . . . Ballistic Cannon . | . . . Launcher . | . . . Special Weapon . | . . . Impact Weapon . | . . . Slashing Weapon . | . . . Piercing Weapon . | . . . Special Melee Weapon 2 | . 1 1 Unidentified Prototypes . | . . . Parts Lost 6 | . 2 4 Power 1 | . . 1 Propulsion . | . . . Utility 2 | . . 2 Weapon 3 | . 2 1 Highest Loss Streak 4 | . 2 4 To Critical Strikes . | . . . Average Slot Usage (%) 85 | . 66 93 Engine 13 | . 14 13 Leg 18 | . . 27 Wheel 9 | . 28 . Device 11 | . . 17 Protection 4 | . . 7 Energy Gun 13 | . 14 13 Special Melee Weapon 11 | . 10 12 Naked Turns . | . . . Heaviest Build 15 | 9 9 15 Greatest Support 30 | 20 20 30 Greatest Overweight (x) . | . . . Average Overweight (x) . | . . . Largest Inventory Capacity 5 | 5 5 5 Average Capacity 5 | 5 5 5 Most Carried 5 | 3 5 5 Average Carried 3 | 1 4 3 Final Capacity 5 | 5 5 5 Final Carried 5 | 3 5 5 Class Distribution -------------------- 100% | Mutant Dominant Class ---------------- Mutant | -10/Materials Mutant | -10/Mines Resources | -11 -10 -10 ----------- Run | Jun Mat Min Matter Collected 362 | 233 . 129 Remotely . | . . . Salvage Created 60 | . . 60 Parts 3 | . . 3 Haulers Intercepted . | . . . Recyclers Shooed . | . . . Parts Field Recycled . | . . . Retrieved Matter . | . . . Parts Self-Destructed . | . . . Prevented . | . . . Kills | -11 -10 -10 ------- Run | Jun Mat Min Combat Hostiles Destroyed 1 | . . 1 Guns 1 | . . 1 Classes Destroyed 1 | . . 1 Sentry 1 | . . 1 Best Kill Streak 1 | . . 1 Combat Bots Only 1 | . . 1 Max Kills in Single Turn 1 | . . 1 Gunslinging . | . . . Exploded . | . . . Melee . | . . . Uniques/NPCs Destroyed . | . . . Combat | -11 -10 -10 -------- Run | Jun Mat Min Damage Taken 796 | . 156 640 Core 264 | . . 264 Absorbed by Shields . | . . . Core Remaining (%) 100 | 100 . . Volleys Fired 10 | . 5 5 Largest 1 | . 1 1 Hottest 50 | . 40 50 Shots Fired 10 | . 5 5 Gun 10 | . 5 5 Cannon . | . . . Launcher . | . . . Special . | . . . Kinetic . | . . . Thermal . | . . . Explosive . | . . . Electromagnetic 10 | . 5 5 Robot Hit Streak 3 | . 2 3 Robot Miss Streak 2 | . 1 2 Penetration Max . | . . . Secondary Targets . | . . . Shots Hit Robots 7 | . 3 4 Core Hits 3 | . 1 2 Critical Kills . | . . . Critical Parts Destroyed . | . . . Critical Strikes . | . . . Melee Attacks 1 | . . 1 Impact . | . . . Slashing . | . . . Piercing . | . . . Sneak Attacks . | . . . Combat Hostiles . | . . . Follow-up Attacks . | . . . Damage Inflicted 89 | . 39 50 Guns 89 | . 39 50 Cannons . | . . . Explosions . | . . . Melee . | . . . Ramming . | . . . Kinetic . | . . . Thermal . | . . . Explosive . | . . . Electromagnetic 89 | . 39 50 Impact . | . . . Slashing . | . . . Piercing . | . . . Highest Corruption 1 | . 1 1 Average Corruption 1 | . 1 1 Corruption Purged . | . . . Corruption Blocked . | . . . Overload Shots . | . . . Overflow Damage . | . . . Projectiles . | . . . Explosions . | . . . Melee . | . . . Knockbacks . | . . . Impact . | . . . Kinetic . | . . . Secondary . | . . . Self-Inflicted Damage . | . . . Shots . | . . . Rammed . | . . . Targets Rammed . | . . . Kicked . | . . . Crushed . | . . . Highest Temperature 30 | . 30 28 Average Temperature 14 | . 17 12 Received Heat Transfer 93 | . 84 9 Siege Activations . | . . . Robots Corrupted . | . . . Combat Hostiles . | . . . Parts Fried 1 | . . 1 Impact Corruptions . | . . . Robots Melted . | . . . Combat Hostiles . | . . . Parts Melted . | . . . Heat Transferred . | . . . Parts Sabotaged . | . . . Parts Stolen . | . . . Parts Stripped . | . . . Power Chain Reactions . | . . . Missiles Intercepted . | . . . Alert | -11 -10 -10 ------- Run | Jun Mat Min Peak Influence 64 | . 64 57 Initial 22 | . . 22 Average 35 | . 27 43 Maximum Alert Level . | . . . Low Security (%) 100 | 100 100 100 Level 1 . | . . . Level 2 . | . . . Level 3 . | . . . Level 4 . | . . . Level 5 . | . . . High Security . | . . . Max Security . | . . . Squads Dispatched 2 | . 2 . Investigation . | . . . Extermination . | . . . Reinforcement 2 | . 2 . Assault . | . . . Garrison . | . . . Intercept . | . . . Searches Triggered . | . . . Construction Impeded . | . . . Haulers Reinforced . | . . . Active Scanning Responses . | . . . Cargo Convoy Interrupts . | . . . Stealth | -11 -10 -10 --------- Run | Jun Mat Min Distress Signals 1 | . 1 . Communications Jammed . | . . . Distress Signals . | . . . Times Spotted 19 | . 10 9 Peak Tracking Total 8 | . 8 7 Tactical Retreats 2 | . 2 . Traps | -11 -10 -10 ------- Run | Jun Mat Min Traps Triggered 2 | . 1 1 Indirectly . | . . . Trap Hack Attempts . | . . . Triggered . | . . . Disarmed . | . . . Reprogrammed . | . . . Reused . | . . . Traps Extracted . | . . . Installed . | . . . Triggered . | . . . Machines | -11 -10 -10 ---------- Run | Jun Mat Min Machines Disabled . | . . . Max in Single Turn . | . . . Machines Repaired . | . . . Machines Sabotaged . | . . . Overloaded Fab Kills . | . . . Hacking | -11 -10 -10 --------- Run | Jun Mat Min Machines Accessed 2 | . 1 1 Terminals 1 | . 1 . Fabricators . | . . . Repair Stations . | . . . Recycling Units . | . . . Scanalyzers . | . . . Garrison Access . | . . . Total Hacks 5 | . 4 1 Successful 3 | . 2 1 Failed 2 | . 2 . Catastrophic . | . . . Database Lockouts . | . . . Manual . | . . . Terminals 4 | . 4 . Fabricators . | . . . Repair Stations . | . . . Recycling Units . | . . . Scanalyzers . | . . . Garrison Access . | . . . Terminal Hacks 3 | . 2 1 Record 1 | . 1 . Open Door 1 | . . 1 Dispatch Records 1 | . 1 . Fabricator Hacks . | . . . Repair Station Hacks . | . . . Recycling Unit Hacks . | . . . Scanalyzer . | . . . Garrison Access Hacks . | . . . Unauthorized Hacks . | . . . Terminals . | . . . Fabricators . | . . . Repair Stations . | . . . Recycling Units . | . . . Scanalyzers . | . . . Garrison Access . | . . . Data Cores Recovered . | . . . Used . | . . . Hacking Detections 1 | . 1 . Full Trace Events . | . . . Feedback Events . | . . . Feedback Blocked . | . . . Robot Schematics Acquired . | . . . Robots Built . | . . . Authchips . | . . . Time . | . . . Total Robot Build Rating . | . . . Part Schematics Acquired . | . . . Parts Built . | . . . Authchips . | . . . Time . | . . . Total Part Build Rating . | . . . Parts Repaired . | . . . Time . | . . . Parts Recycled . | . . . Recycled Matter . | . . . Retrieved Matter . | . . . Retrieved Components . | . . . Parts Scanalyzed . | . . . Part Schematics Acquired . | . . . Parts Damaged . | . . . Bothacking | -11 -10 -10 ------------ Run | Jun Mat Min Used RIF Installer . | . . . Robots Hacked 1 | . . 1 Non-combat . | . . . Combat 1 | . . 1 Robot Hacks Applied 1 | . . 1 parse_system 1 | . . 1 Relay Couplers Released . | . . . Fabnet Peak Effective % . | . . . Robots Rewired . | . . . Allies Hacked . | . . . Hacks Repelled . | . . . Allies | -11 -10 -10 -------- Run | Jun Mat Min Total Allies . | . . . Largest Group . | . . . Highest-Rated Group . | . . . Highest-Rated Ally . | . . . Total Orders . | . . . Ally Attacks . | . . . Total Damage . | . . . Kills . | . . . Allies Corrupted . | . . . Allies Melted . | . . . Intel | -11 -10 -10 ------- Run | Jun Mat Min Robot Analysis Total . | . . . Derelict Logs Recovered . | . . . Drone Launches . | . . . Drone Recoveries . | . . . Exploration | -11 -10 -10 ------------- Run | Jun Mat Min Turns Passed 494 | 44 143 307 Spaces Moved 422 | 39 162 221 Core 1 | 1 . . Treads . | . . . Legs 221 | . . 221 Wheels 200 | 38 162 . Hover . | . . . Flight . | . . . Fastest Speed 50 | 50 80 120 Average Speed 100 | 79 80 120 Slowest Speed 120 | 80 80 120 Overloaded Moves . | . . . Propulsion Burnouts . | . . . Robots Hopped . | . . . Cave-ins Triggered . | . . . Exploration Rate (%) 25 | 4 33 40 Regions Visited 2 Branch Regions 1 Pre-discovered Areas . | . . . Known Exits Taken . | . . . Unknown Exits Taken 2 | 1 1 . Scrap Searched 1 | . . 1 Spaces Dug . | . . . Terrain Destroyed . | . . . Melee . | . . . Projectile . | . . . AOE . | . . . Terrain Rammed . | . . . Walls Destroyed . | . . . Machines Disabled . | . . . Actions | -11 -10 -10 --------- Run | Jun Mat Min Total 477 | 51 169 257 Wait . | . . . Move 420 | 38 161 221 Hop . | . . . Pick Up 21 | 8 2 11 Fast Attach . | . . . Attach 9 | 5 . 4 Detach . | . . . Swap 9 | . 1 8 Drop 7 | . . 7 Fire 10 | . 5 5 Melee 1 | . . 1 Ram . | . . . Kick . | . . . Crush . | . . . Escape Stasis . | . . . Rewire . | . . . Trap . | . . . Miscellaneous . | . . . Route ------- -11/Junkyard -10/Materials -10/Mines History --------- Turn | Location | Event 25 | -11/Junkyard | Discovered new exit (range 16) 45 | -11/Junkyard | Entered Materials 177 | -10/Materials | Discovered new exit (range 15) 188 | -10/Materials | Entered Mines 202 | -10/Mines | Met a Derelict who couldn't figure out how to use a Trap Extractor 292 | -10/Mines | Joined a pair of Derelicts in attacking an 0b10 outpost 306 | -10/Mines | Build established: Mutant 397 | -10/Mines | Found a damaged Exp. Sensor Array with a note attached 403 | -10/Mines | Found Prototype Device 437 | -10/Mines | Assembled infested the area 492 | -10/Mines | Core integrity fell below 50% 495 | -10/Mines | Destroyed by D-53 Grenadier with Mini Grenade Launcher Last Messages --------------- 00428_ Found Signal Interpreter. 00428_ Found 22 Matter. 00429_ Acquired 22 matter. 00431_ T-07 Excavator is excavating. 00434_ K-01 Serf collects debris. 00437_ ALERT: Infestation in the mines, dispatching Demolisher response squad. 00437_ K-01 Serf collects debris. 00474_ Jacked as-98481... >>parse_system Reading system data... 00474_ K-01 Serf collects debris. 00489_ T-07 Excavator is excavating. 00489_ Imp. Ion Engine destroyed. 00489_ Lgt. Armor Plating destroyed. 00489_ U-05 Engineer lays Concrete. 00490_ Shock Rifle destroyed. 00490_ as-59468 destroyed. 00490_ U-05 Engineer lays Concrete. 00495_ Recoil Stabilizer destroyed. Map ----- +----------------------------------------------------+ | ?????????????????????????????????????????????????? | | ?????????????????????????????????????????????????? | | ?????????????????????????????????????????????????? | | ???????####??????????????????????????????????????? | | ??????## ##?????????????????????????????????????? | | ??????# ##????????????????????????????????????? | | ??????# #????????????????????????????????????? | | ???????# #????????????????????????????????????? | | ???????## #????????????????????????????????????? | | ????????# #????????????????????????????????????? | | ???????## ##???????????????????????????????????? | | ???????# #???????????????????????????????????? | | ???????# #???????????????????????????????????? | | ???????# ##??????????????????????????????????? | | ???????# ##?????????????????????????????????? | | ???????## ##????????????????????????????????? | | ????????#### ##???#???????????????????????????? | | ???????????## ### #????????????###????????????? | | ????????????# #??????##??? ?????????????? | | ????????????# ## #????## ### #??????????????? | | ????????????## ## #???? #??????????????? | | ?????????????## #???? ????????????????? | | ??????????????## ######## #?????????????????? | | ???????????????# #### #?????????????????? | | ???????????????# ## ##????????????????? | | ???????????????# # @ #????????????????? | | ?????# ###### # #????????????????? | | ????# ! ! # #????????????????? | | ????# * ] #????????????????? | | ????# ###### d #????????????????? | | ????###???????# d #???????????????? | | ?????????????# ## ####?????????????? | | ??????????? #### %u #??????????? | | ????????? ##### #### #??????????? | | ????????# ###?## ### #####??????????? | | ????????## #????# #? #??????????????? | | ?????????#######?# r #?########??????????????? | | ?????????##"%![#### ##???????????????????????? | | ?????????#]/ %/!#?# ##???????????????????????? | | ?????????#]!!*!!### #???????????????????????? | | ?????????##! ### ##??????????????????????? | | ?????????###++### #??????????????????????? | | ?????##### # ### ##########?????????????? | | ????## ##?# #????????????#? | | ????# ## #??# ####### #???####### ## | | ????# #??## ##?????# #???# | | ????## #### #???#####??????# ##### | | ?????####??## #??????????????# #??????? | | ????????????# #??????????????####### #??????? | | ????????????## #????????????????????# #??????? | +----------------------------------------------------+ Best States ------------- Heat Dissipation 25 Energy Generation 12 Energy Capacity 265 Matter Stores 300 Matter Capacity 300 Sight Range 16 Terrain Scan Density 10 Armor Coverage 150 Evasion (%) 55 Recoil Reduction 4 Particle Charging 15 Item Schematics ----------------- None Robot Schematics ------------------ None Fabricated ------------ Nothing Alien Tech Used ----------------- None Achievements -------------- None Challenges ------------ None Game ------ Seed ArmoredCatalystCanceller Manual? 0 Play Time 00:09:34 Cumulative 14.9 hours Start 2023.09.02 @ 12:05:44 End 2023.09.02 @ 12:12:14 Sessions 1 Manual Loads 0 Difficulty Rogue Special Mode None Game No. 47 Rogue 47 Adventurer 0 Explorer 0 Win Type - Total 0 Types 0/0/0/0/0/0/0/0/0 Lore% 13 Gallery% 22 Achievement% 19 Wizard Run 0 Options --------- ASCII 0 Keyboard 0 Movement Numpad Keybinds 0 Fullscreen 1 Font 18/SmallcapsGlow Map View 76x50 Tactical HUD 1 Map Filters NONE Filters NONE Steam 1 RUN: 27b4a91f-c8ef-40e7-a45b-28e6562596c4